[Event "EWIBCC 2019"]
[Site "Monte-Carlo"]
[Date "2019.11.29"]
[Round "2.1"]
[White "Zhukova, Natalia"]
[Black "Kosteniuk, Alexandra"]
[Result "1/2-1/2"]
[ECO "A28"]
[WhiteElo "2323"]
[BlackElo "2483"]
[Annotator "RC"]
[PlyCount "89"]
[EventDate "2019.11.29"]
[EventType "swiss"]
[EventCountry "MNC"]
[SourceTitle "playchess.com"]
[Source "ChessBase"]
[SourceQuality "1"]
[TimeControl "180+2"]

1. c4 {[%emt 0:00:00]} Nf6 {[%emt 0:00:01]} 2. Nc3 {[%emt 0:00:00]} e5 {[%emt 0:00:00]} 3. Nf3 {[%emt 0:00:02]} Nc6 {[%emt 0:00:01]} 4. e4 {[%emt 0:00:02]} Bb4 {[%emt 0:00:02]} 5. d3 {[%emt 0:00:01]} d6 {[%emt 0:00:01]} 6. Be2 {[%emt 0:00:03]} h6 {[%emt 0:00:08]} 7. O-O {[%emt 0:00:03]} O-O {[%emt 0:00:06]} 8. Na4 {[%emt 0:00:03]} a6 {[%emt 0:00:11]} 9. a3 {[%emt 0:00:02]} Bc5 {[%emt 0:00:01]} 10. Nxc5 {[%emt 0:00:17]} dxc5 {[%emt 0:00:01]} 11. b4 {[%emt 0:00:04]} Qd6 {[%emt 0:00:09]} 12. bxc5 {[%emt 0:00:20]} Qxc5 {[%emt 0:00:02]} 13. a4 {[%emt 0:00:06]} Rd8 {[%emt 0:00:23]} 14. Ba3 {[%emt 0:00:04]} Qa7 {[%emt 0:00:01]} 15. Qe1 {[%emt 0:00:50]} Bg4 {[%emt 0:00:03]} 16. Nd2 {[%emt 0:00:13]} Bxe2 {[%emt 0:00:06]} 17. Qxe2 {[%emt 0:00:01]} Nd4 {[%emt 0:00:00]} 18. Qd1 {[%emt 0:00:14]} Qb6 {[%emt 0:00:01]} 19. Kh1 {[%emt 0:00:03]} Ne6 {[%emt 0:00:08]} 20. Rb1 {[%emt 0:00:08]} Qc6 {[%emt 0:00:01]} 21. Nf3 {[%emt 0:00:18]} Nd7 {[%emt 0:00:14]} 22. Qc1 {[%emt 0:00:28]} Rab8 {[%emt 0:00:10]} 23. Rd1 {[%emt 0:00:01]} Qxa4 {[%emt 0:00:02]} 24. Bb2 {[%emt 0:00:08]} f6 {[%emt 0:00:17]} 25. d4 {[%emt 0:00:01]} exd4 {[%emt 0:00:03]} 26. Nxd4 {[%emt 0:00:01]} Nxd4 {[%emt 0:00:03]} 27. Bxd4 {[%emt 0:00:02]} Qc6 {[%emt 0:00:08]} 28. f3 {[%emt 0:00:02]} Nf8 {[%emt 0:00:06]} 29. c5 {[%emt 0:00:02]} Ne6 {[%emt 0:00:03]} 30. Qc4 {[%emt 0:00:01]} Kh7 {[%emt 0:00:10]} 31. Be3 {[%emt 0:00:02]} b5 {[%emt 0:00:09]} 32. Qc2 {[%emt 0:00:01]} Kg8 {[%emt 0:00:07]} 33. Ra1 {[%emt 0:00:04]} Rxd1+ {[%emt 0:00:06]} 34. Rxd1 {[%emt 0:00:02]} Rd8 {[%emt 0:00:02]} 35. Ra1 {[%emt 0:00:05]} Kf8 {[%emt 0:00:05]} 36. h3 {[%emt 0:00:02]} Ke7 {[%emt 0:00:12]} 37. Bf2 {[%emt 0:00:08]} Nf4 {[%emt 0:00:06]} 38. e5 {[%emt 0:00:03]} fxe5 {[%emt 0:00:01]} 39. Bh4+ {[%emt 0:00:04]} g5 {[%emt 0:00:01]} 40. Qh7+ {[%emt 0:00:01]} Ke8 {[%emt 0:00:09]} 41. Qg8+ {[%emt 0:00:02]} Ke7 {[%emt 0:00:09]} 42. Qg7+ {[%emt 0:00:01]} Ke8 {[%emt 0:00:01]} 43. Qg8+ {[%emt 0:00:00]} Ke7 {[%emt 0:00:03]} 44. Qg7+ {[%emt 0:00:01]} Ke8 {[%emt 0:00:06]} 45. Qg8+ {[%emt 0:00:01]} 1/2-1/2

[Event "EWIBCC 2019"]
[Site "Monte-Carlo"]
[Date "2019.11.29"]
[Round "2.3"]
[White "Sebag, Marie"]
[Black "Dornbusch, Tatiana"]
[Result "1-0"]
[ECO "B05"]
[WhiteElo "2443"]
[BlackElo "2269"]
[Annotator "NA"]
[PlyCount "49"]
[EventDate "2019.11.29"]
[EventType "swiss"]
[EventCountry "MNC"]
[SourceTitle "playchess.com"]
[Source "ChessBase"]
[SourceQuality "1"]
[TimeControl "180+2"]

1. e4 {[%emt 0:00:00]} Nf6 {[%emt 0:00:00]} 2. e5 {[%emt 0:00:01]} Nd5 {[%emt 0:00:00]} 3. d4 {[%emt 0:00:01]} d6 {[%emt 0:00:00]} 4. Nf3 {[%emt 0:00:02]} Nc6 {[%emt 0:00:01]} 5. c4 {[%emt 0:00:08]} Nb6 {[%emt 0:00:01]} 6. exd6 {[%emt 0:00:23]} exd6 {[%emt 0:00:01]} 7. Nc3 {[%emt 0:00:04]} Be7 {[%emt 0:00:01]} 8. Be2 {[%emt 0:00:01]} O-O {[%emt 0:00:08]} 9. O-O {[%emt 0:00:02]} Bg4 {[%emt 0:00:01]} 10. b3 {[%emt 0:00:12]} Bf6 {[%emt 0:00:09]} 11. Be3 {[%emt 0:00:04]} Re8 {[%emt 0:00:26]} 12. h3 {[%emt 0:00:02]} Bh5 {[%emt 0:00:10]} 13. Rc1 {[%emt 0:00:01]} d5 {[%emt 0:00:04]} 14. c5 {[%emt 0:00:11]} Nc8 {[%emt 0:00:01]} 15. a3 {[%emt 0:00:01]} N8e7 {[%emt 0:00:18]} 16. g4 {[%emt 0:00:05]} Bg6 {[%emt 0:00:03]} 17. g5 {[%emt 0:00:02]} Nf5 {[%emt 0:00:21]} 18. gxf6 {[%emt 0:00:01]} Qxf6 {[%emt 0:00:15]} 19. Nxd5 {[%emt 0:00:18]} Qd8 {[%emt 0:00:09]} 20. Bc4 {[%emt 0:00:03]} Nxe3 {[%emt 0:00:22]} 21. fxe3 {[%emt 0:00:04]} Be4 {[%emt 0:00:10]} 22. Nf4 {[%emt 0:00:16]} Na5 {[%emt 0:00:30]} 23. Bd3 {[%emt 0:00:20]} Bxd3 {[%emt 0:00:26]} 24. Qxd3 {[%emt 0:00:02]} Nc6 {[%emt 0:00:01]} 25. Rce1 {[%emt 0:00:17]} 1-0

[Event "EWIBCC 2019"]
[Site "Monte-Carlo"]
[Date "2019.11.29"]
[Round "2.5"]
[White "Bensdorp-De Labaca, Marlies"]
[Black "Gaponenko, Inna"]
[Result "0-1"]
[ECO "E70"]
[WhiteElo "2228"]
[BlackElo "2427"]
[Annotator "ChessBase"]
[PlyCount "84"]
[EventDate "2019.11.29"]
[EventType "swiss"]
[EventCountry "MNC"]
[SourceTitle "playchess.com"]
[Source "ChessBase"]
[SourceQuality "1"]
[TimeControl "180+2"]

1. d4 {[%emt 0:00:00]} g6 {[%emt 0:00:00]} 2. c4 {[%emt 0:00:00]} Bg7 {[%emt 0:00:00]} 3. e4 {[%emt 0:00:01]} d6 {[%emt 0:00:00]} 4. Nc3 {[%emt 0:00:01]} e5 {[%emt 0:00:07]} 5. d5 {[%emt 0:00:03]} Na6 {[%emt 0:00:03]} 6. Bd3 {[%emt 0:00:02]} Nc5 {[%emt 0:00:03]} 7. Bc2 {[%emt 0:00:01]} a5 {[%emt 0:00:01]} 8. Nge2 {[%emt 0:00:02]} Nf6 {[%emt 0:00:02]} 9. O-O {[%emt 0:00:06]} O-O {[%emt 0:00:01]} 10. Rb1 {[%emt 0:00:01]} Bd7 {[%emt 0:00:23]} 11. b3 {[%emt 0:00:03]} Ne8 {[%emt 0:00:04]} 12. a3 {[%emt 0:00:02]} f5 {[%emt 0:00:11]} 13. exf5 {[%emt 0:00:02]} gxf5 {[%emt 0:00:01]} 14. f4 {[%emt 0:00:01]} e4 {[%emt 0:00:10]} 15. Be3 {[%emt 0:00:05]} Nf6 {[%emt 0:00:03]} 16. h3 {[%emt 0:00:04]} Qe8 {[%emt 0:00:05]} 17. Nd4 {[%emt 0:00:07]} c6 {[%emt 0:00:36]} 18. b4 {[%emt 0:00:12]} axb4 {[%emt 0:00:01]} 19. axb4 {[%emt 0:00:02]} Nd3 {[%emt 0:00:06]} 20. dxc6 {[%emt 0:00:12]} bxc6 {[%emt 0:00:06]} 21. Bxd3 {[%emt 0:00:09]} exd3 {[%emt 0:00:02]} 22. Qxd3 {[%emt 0:00:02]} Qg6 {[%emt 0:00:46]} 23. b5 {[%emt 0:00:14]} c5 {[%emt 0:00:08]} 24. Nc6 {[%emt 0:00:08]} Rae8 {[%emt 0:00:23]} 25. Rf3 {[%emt 0:00:14]} Ne4 {[%emt 0:00:05]} 26. Nd5 {[%emt 0:00:09]} Kh8 {[%emt 0:00:06]} 27. Kh2 {[%emt 0:00:23]} Qh6 {[%emt 0:00:09]} 28. Qc2 {[%emt 0:00:07]} Qg6 {[%emt 0:00:01]} 29. Bc1 {[%emt 0:00:04]} Qf7 {[%emt 0:00:07]} 30. Bb2 {[%emt 0:00:03]} Be6 {[%emt 0:00:02]} 31. Ne3 {[%emt 0:00:08]} Qd7 {[%emt 0:00:05]} 32. Rd1 {[%emt 0:00:15]} Qf7 {[%emt 0:00:01]} 33. Nf1 {[%emt 0:00:11]} Rg8 {[%emt 0:00:04]} 34. Ng3 {[%emt 0:00:01]} Bxb2 {[%emt 0:00:03]} 35. Qxb2+ {[%emt 0:00:01]} Rg7 {[%emt 0:00:00]} 36. Nxe4 {[%emt 0:00:08]} fxe4 {[%emt 0:00:02]} 37. Rg3 {[%emt 0:00:06]} Reg8 {[%emt 0:00:00]} 38. Rf1 {[%emt 0:00:02]} Bxc4 {[%emt 0:00:01]} 39. Rf2 {[%emt 0:00:06]} Bd5 {[%emt 0:00:01]} 40. Qa1 {[%emt 0:00:12]} h5 {[%emt 0:00:02]} 41. Rg5 {[%emt 0:00:04]} Kh7 {[%emt 0:00:02]} 42. Ra2 {[%emt 0:00:12]} Qxf4+ {[%emt 0:00:02]} 0-1

[Event "EWIBCC 2019"]
[Site "Monte-Carlo"]
[Date "2019.11.29"]
[Round "2.6"]
[White "Michna, Marta"]
[Black "Rogule, Laura"]
[Result "1/2-1/2"]
[ECO "A00"]
[WhiteElo "2366"]
[BlackElo "2293"]
[Annotator "ChessBase"]
[PlyCount "81"]
[EventDate "2019.11.29"]
[EventType "swiss"]
[EventCountry "MNC"]
[SourceTitle "playchess.com"]
[Source "ChessBase"]
[SourceQuality "1"]
[TimeControl "180+2"]

1. Nf3 {[%emt 0:00:00]} d5 {[%emt 0:00:00]} 2. d3 {[%emt 0:00:00]} Nf6 {[%emt 0:00:01]} 3. Nbd2 {[%emt 0:00:01]} Nbd7 {[%emt 0:00:08]} 4. g3 {[%emt 0:00:07]} c6 {[%emt 0:00:02]} 5. Bg2 {[%emt 0:00:01]} e5 {[%emt 0:00:02]} 6. e4 {[%emt 0:00:05]} dxe4 {[%emt 0:00:09]} 7. dxe4 {[%emt 0:00:01]} Bc5 {[%emt 0:00:02]} 8. O-O {[%emt 0:00:04]} O-O {[%emt 0:00:03]} 9. c3 {[%emt 0:00:06]} a5 {[%emt 0:00:18]} 10. a4 {[%emt 0:00:04]} Qc7 {[%emt 0:00:15]} 11. Qc2 {[%emt 0:00:02]} Rd8 {[%emt 0:00:02]} 12. Nc4 {[%emt 0:00:15]} b6 {[%emt 0:00:17]} 13. Rd1 {[%emt 0:00:17]} Ba6 {[%emt 0:00:01]} 14. Ne3 {[%emt 0:00:08]} Bf8 {[%emt 0:00:08]} 15. Nd2 {[%emt 0:01:26]} Nc5 {[%emt 0:00:02]} 16. Ndc4 {[%emt 0:00:16]} Rxd1+ {[%emt 0:00:05]} 17. Qxd1 {[%emt 0:00:01]} Rd8 {[%emt 0:00:01]} 18. Qc2 {[%emt 0:00:01]} g6 {[%emt 0:00:13]} 19. Bd2 {[%emt 0:00:04]} Bh6 {[%emt 0:00:14]} 20. Be1 {[%emt 0:00:02]} Nd3 {[%emt 0:00:07]} 21. Rd1 {[%emt 0:00:07]} Nxe1 {[%emt 0:00:04]} 22. Rxe1 {[%emt 0:00:01]} b5 {[%emt 0:00:06]} 23. Na3 {[%emt 0:00:01]} Rd7 {[%emt 0:00:09]} 24. Bh3 {[%emt 0:00:03]} Rd6 {[%emt 0:00:03]} 25. Bf1 {[%emt 0:00:05]} Qb7 {[%emt 0:00:18]} 26. Rd1 {[%emt 0:00:01]} Rxd1 {[%emt 0:00:05]} 27. Qxd1 Bxe3 {[%emt 0:00:03]} 28. fxe3 {[%emt 0:00:07]} Nxe4 {[%emt 0:00:04]} 29. Qd8+ {[%emt 0:00:02]} Kg7 {[%emt 0:00:01]} 30. Bg2 {[%emt 0:00:14]} Qa7 {[%emt 0:00:20]} 31. Nc2 {[%emt 0:00:01]} Nc5 {[%emt 0:00:10]} 32. axb5 {[%emt 0:00:02]} Bxb5 {[%emt 0:00:05]} 33. Qd6 {[%emt 0:00:01]} Nd3 {[%emt 0:00:11]} 34. Bf1 {[%emt 0:00:05]} e4 {[%emt 0:00:06]} 35. Nd4 {[%emt 0:00:02]} Nxb2 {[%emt 0:00:07]} 36. Qe5+ {[%emt 0:00:02]} Kg8 {[%emt 0:00:02]} 37. Qe8+ {[%emt 0:00:01]} Kg7 {[%emt 0:00:01]} 38. Qe5+ {[%emt 0:00:01]} Kg8 {[%emt 0:00:01]} 39. Qe8+ {[%emt 0:00:03]} Kg7 {[%emt 0:00:01]} 40. Qe5+ {[%emt 0:00:00]} Kg8 {[%emt 0:00:01]} 41. Qe8+ {[%emt 0:00:01]} 1/2-1/2

[Event "EWIBCC 2019"]
[Site "Monte-Carlo"]
[Date "2019.11.29"]
[Round "2.8"]
[White "Bodnaruk, Anastasia"]
[Black "Skuhala, Barbara"]
[Result "1/2-1/2"]
[ECO "B90"]
[WhiteElo "2412"]
[BlackElo "2109"]
[Annotator "ChessBase"]
[PlyCount "124"]
[EventDate "2019.11.29"]
[EventType "swiss"]
[EventCountry "MNC"]
[SourceTitle "playchess.com"]
[Source "ChessBase"]
[SourceQuality "1"]
[TimeControl "180+2"]

1. e4 {[%emt 0:00:00]} c5 {[%emt 0:00:00]} 2. Nf3 {[%emt 0:00:00]} d6 {[%emt 0:00:00]} 3. d4 {[%emt 0:00:00]} cxd4 {[%emt 0:00:01]} 4. Nxd4 {[%emt 0:00:01]} Nf6 {[%emt 0:00:01]} 5. Nc3 {[%emt 0:00:01]} a6 {[%emt 0:00:02]} 6. h3 {[%emt 0:00:02]} e5 {[%emt 0:00:04]} 7. Nde2 {[%emt 0:00:05]} Be7 {[%emt 0:00:01]} 8. g4 {[%emt 0:00:06]} Be6 {[%emt 0:00:05]} 9. Bg2 {[%emt 0:00:02]} Nc6 {[%emt 0:00:02]} 10. Be3 {[%emt 0:00:11]} Rc8 {[%emt 0:00:04]} 11. O-O {[%emt 0:00:11]} O-O {[%emt 0:00:08]} 12. Nd5 {[%emt 0:00:25]} Bxd5 {[%emt 0:00:08]} 13. exd5 {[%emt 0:00:01]} Nb8 {[%emt 0:00:12]} 14. Ng3 {[%emt 0:00:05]} Re8 {[%emt 0:00:08]} 15. Nf5 {[%emt 0:00:09]} Bf8 {[%emt 0:00:01]} 16. g5 {[%emt 0:00:17]} Nfd7 {[%emt 0:00:02]} 17. c3 {[%emt 0:00:10]} g6 {[%emt 0:00:02]} 18. Ng3 {[%emt 0:00:03]} f5 {[%emt 0:00:05]} 19. gxf6 {[%emt 0:00:04]} Qxf6 {[%emt 0:00:02]} 20. Ne4 {[%emt 0:00:04]} Qg7 {[%emt 0:00:03]} 21. h4 {[%emt 0:00:05]} Nf6 {[%emt 0:00:03]} 22. Nxf6+ {[%emt 0:00:23]} Qxf6 {[%emt 0:00:01]} 23. Bh3 {[%emt 0:00:02]} Rc7 {[%emt 0:00:08]} 24. Qg4 {[%emt 0:00:05]} Nd7 {[%emt 0:00:21]} 25. f4 {[%emt 0:00:25]} Qg7 {[%emt 0:00:02]} 26. f5 {[%emt 0:00:07]} Nf6 {[%emt 0:00:04]} 27. Qg2 {[%emt 0:00:08]} gxf5 {[%emt 0:00:05]} 28. Rxf5 {[%emt 0:00:03]} Qxg2+ {[%emt 0:00:04]} 29. Bxg2 {[%emt 0:00:03]} Bg7 {[%emt 0:00:10]} 30. Raf1 {[%emt 0:00:06]} Rf7 {[%emt 0:00:01]} 31. Bg5 {[%emt 0:00:06]} Ref8 {[%emt 0:00:01]} 32. c4 {[%emt 0:00:06]} Ne8 {[%emt 0:00:05]} 33. Be4 {[%emt 0:00:08]} Rxf5 {[%emt 0:00:03]} 34. Bxf5 {[%emt 0:00:02]} Kh8 {[%emt 0:00:04]} 35. Be7 {[%emt 0:00:02]} Rf7 {[%emt 0:00:02]} 36. Bd8 {[%emt 0:00:05]} Bf6 {[%emt 0:00:19]} 37. Be6 {[%emt 0:00:05]} Rg7+ {[%emt 0:00:02]} 38. Kh2 {[%emt 0:00:01]} Rg6 {[%emt 0:00:17]} 39. Bf7 {[%emt 0:00:11]} Rh6 {[%emt 0:00:02]} 40. Bxe8 {[%emt 0:00:02]} Bxd8 {[%emt 0:00:01]} 41. h5 {[%emt 0:00:01]} Rf6 {[%emt 0:00:02]} 42. Rxf6 {[%emt 0:00:03]} Bxf6 {[%emt 0:00:03]} 43. Bd7 {[%emt 0:00:01]} b6 {[%emt 0:00:01]} 44. b4 {[%emt 0:00:03]} a5 {[%emt 0:00:06]} 45. a3 {[%emt 0:00:02]} axb4 {[%emt 0:00:02]} 46. axb4 {[%emt 0:00:00]} Bg5 {[%emt 0:00:01]} 47. Kg3 {[%emt 0:00:02]} Be3 {[%emt 0:00:05]} 48. Kg4 {[%emt 0:00:06]} Kg7 {[%emt 0:00:02]} 49. Kf5 {[%emt 0:00:01]} Kf7 {[%emt 0:00:02]} 50. Be6+ {[%emt 0:00:02]} Ke7 {[%emt 0:00:01]} 51. Bg8 {[%emt 0:00:02]} h6 {[%emt 0:00:01]} 52. Be6 {[%emt 0:00:03]} Bd2 {[%emt 0:00:01]} 53. c5 {[%emt 0:00:02]} dxc5 {[%emt 0:00:08]} 54. bxc5 {[%emt 0:00:01]} bxc5 {[%emt 0:00:01]} 55. Kxe5 {[%emt 0:00:02]} c4 {[%emt 0:00:05]} 56. d6+ {[%emt 0:00:00]} Kd8 {[%emt 0:00:01]} 57. Bxc4 {[%emt 0:00:01]} Bg5 {[%emt 0:00:01]} 58. Bb5 {[%emt 0:00:03]} Bd2 {[%emt 0:00:02]} 59. Ke6 {[%emt 0:00:05]} Bc1 {[%emt 0:00:02]} 60. Kd5 {[%emt 0:00:02]} Bg5 {[%emt 0:00:01]} 61. Ke6 {[%emt 0:00:01]} Bc1 {[%emt 0:00:01]} 62. d7 {[%emt 0:00:03]} Bg5 {[%emt 0:00:01]} 1/2-1/2

[Event "EWIBCC 2019"]
[Site "Monte-Carlo"]
[Date "2019.11.29"]
[Round "2.11"]
[White "Bulmaga, Irina"]
[Black "Muetsch, Annmarie"]
[Result "1-0"]
[ECO "B85"]
[WhiteElo "2435"]
[BlackElo "2240"]
[Annotator "ChessBase"]
[PlyCount "53"]
[EventDate "2019.11.29"]
[EventType "swiss"]
[EventCountry "MNC"]
[SourceTitle "playchess.com"]
[Source "ChessBase"]
[SourceQuality "1"]
[TimeControl "180+2"]

1. e4 {[%emt 0:00:00]} c5 {[%emt 0:00:00]} 2. Nf3 {[%emt 0:00:02]} e6 {[%emt 0:00:01]} 3. d4 {[%emt 0:00:01]} cxd4 {[%emt 0:00:01]} 4. Nxd4 {[%emt 0:00:01]} Nc6 {[%emt 0:00:01]} 5. Nc3 {[%emt 0:00:02]} Qc7 {[%emt 0:00:01]} 6. Be2 {[%emt 0:00:01]} a6 {[%emt 0:00:01]} 7. Be3 {[%emt 0:00:03]} Nf6 {[%emt 0:00:02]} 8. O-O {[%emt 0:00:04]} Be7 {[%emt 0:00:01]} 9. f4 {[%emt 0:00:04]} d6 {[%emt 0:00:02]} 10. Kh1 {[%emt 0:00:01]} O-O {[%emt 0:00:02]} 11. Qe1 {[%emt 0:00:02]} Nxd4 {[%emt 0:00:06]} 12. Bxd4 {[%emt 0:00:02]} b5 {[%emt 0:00:02]} 13. Qg3 {[%emt 0:00:02]} b4 {[%emt 0:00:24]} 14. e5 {[%emt 0:00:03]} Ne8 {[%emt 0:00:49]} 15. exd6 {[%emt 0:00:12]} Bxd6 {[%emt 0:00:32]} 16. Ne4 {[%emt 0:00:04]} Be7 {[%emt 0:00:21]} 17. Bd3 {[%emt 0:00:13]} Bb7 {[%emt 0:00:06]} 18. Be5 {[%emt 0:00:33]} Qa5 {[%emt 0:00:09]} 19. f5 {[%emt 0:00:28]} exf5 {[%emt 0:00:09]} 20. Rxf5 {[%emt 0:00:15]} Qb6 {[%emt 0:00:06]} 21. Raf1 {[%emt 0:00:16]} Rd8 {[%emt 0:00:17]} 22. Bc7 {[%emt 0:00:16]} Qe6 {[%emt 0:00:18]} 23. Bxd8 {[%emt 0:00:03]} Bxd8 {[%emt 0:00:01]} 24. Ng5 {[%emt 0:00:10]} Bxg5 {[%emt 0:00:03]} 25. Qxg5 {[%emt 0:00:06]} g6 {[%emt 0:00:05]} 26. R5f4 {[%emt 0:00:04]} Qd6 {[%emt 0:00:04]} 27. Bc4 {[%emt 0:00:05]} 1-0

[Event "EWIBCC 2019"]
[Site "Monte-Carlo"]
[Date "2019.11.29"]
[Round "2.12"]
[White "Paasikangas-Tella, Johanna"]
[Black "Babiy, Olga"]
[Result "1-0"]
[ECO "D27"]
[WhiteElo "2177"]
[BlackElo "2249"]
[Annotator "NA"]
[PlyCount "54"]
[EventDate "2019.11.29"]
[EventType "swiss"]
[EventCountry "MNC"]
[SourceTitle "playchess.com"]
[Source "ChessBase"]
[SourceQuality "1"]
[TimeControl "180+2"]

1. d4 {[%emt 0:00:00]} d5 {[%emt 0:00:00]} 2. c4 {[%emt 0:00:02]} dxc4 {[%emt 0:00:00]} 3. e3 {[%emt 0:00:04]} Nf6 {[%emt 0:00:02]} 4. Bxc4 {[%emt 0:00:02]} e6 {[%emt 0:00:01]} 5. Nf3 {[%emt 0:00:04]} a6 {[%emt 0:00:01]} 6. O-O {[%emt 0:00:04]} c5 {[%emt 0:00:01]} 7. a4 {[%emt 0:00:06]} Nc6 {[%emt 0:00:03]} 8. Nc3 {[%emt 0:00:08]} Be7 {[%emt 0:00:02]} 9. Re1 {[%emt 0:00:06]} O-O {[%emt 0:00:03]} 10. Bf1 {[%emt 0:00:17]} Qc7 {[%emt 0:00:05]} 11. Qb3 {[%emt 0:00:10]} Rd8 {[%emt 0:00:23]} 12. dxc5 {[%emt 0:00:11]} Bxc5 {[%emt 0:00:03]} 13. h3 {[%emt 0:00:02]} e5 {[%emt 0:00:11]} 14. e4 {[%emt 0:00:04]} Be6 {[%emt 0:00:08]} 15. Qc2 {[%emt 0:00:14]} Nb4 {[%emt 0:00:22]} 16. Qb1 {[%emt 0:00:04]} Bb3 {[%emt 0:00:18]} 17. Re2 {[%emt 0:00:18]} Nh5 {[%emt 0:00:21]} 18. Ne1 {[%emt 0:00:10]} Ng3 {[%emt 0:00:09]} 19. Rd2 {[%emt 0:00:13]} Qb6 {[%emt 0:00:05]} 20. Nd3 {[%emt 0:00:18]} Nxf1 {[%emt 0:00:13]} 21. Nxc5 {[%emt 0:00:02]} Nxd2 {[%emt 0:00:06]} 22. Bxd2 {[%emt 0:00:02]} Rxd2 {[%emt 0:00:23]} 23. Qc1 {[%emt 0:00:23]} Rad8 {[%emt 0:00:03]} 24. Nd5 {[%emt 0:00:16]} R8xd5 {[%emt 0:00:15]} 25. exd5 {[%emt 0:00:02]} Rd1+ {[%emt 0:00:01]} 26. Qxd1 {[%emt 0:00:03]} Bxd1 {[%emt 0:00:00]} 27. Rxd1 {[%emt 0:00:01]} Qxc5 {[%emt 0:00:02]} 1-0

[Event "EWIBCC 2019"]
[Site "Monte-Carlo"]
[Date "2019.11.29"]
[Round "2.13"]
[White "Reizniece-Ozola, Dana"]
[Black "Leconte, Maria"]
[Result "1-0"]
[ECO "A25"]
[WhiteElo "2305"]
[BlackElo "2255"]
[Annotator "NA"]
[PlyCount "79"]
[EventDate "2019.11.29"]
[EventType "swiss"]
[EventCountry "MNC"]
[SourceTitle "playchess.com"]
[Source "ChessBase"]
[SourceQuality "1"]
[TimeControl "180+2"]

1. c4 {[%emt 0:03:02]} e5 {[%emt 0:03:02]} 2. Nc3 {[%emt 0:00:02]} Nc6 {[%emt 0:00:02]} 3. g3 f5 4. Bg2 {[%emt 0:00:04]} Nf6 5. e3 d6 {[%emt 0:00:06]} 6. Nge2 {[%emt 0:00:00]} g6 {[%emt 0:00:00]} 7. O-O {[%emt 0:00:00]} Bg7 {[%emt 0:00:00]} 8. d3 {[%emt 0:00:00]} O-O {[%emt 0:00:00]} 9. Rb1 {[%emt 0:00:00]} a5 {[%emt 0:00:00]} 10. b3 {[%emt 0:00:00]} Ne7 {[%emt 0:00:00]} 11. Bb2 {[%emt 0:00:00]} c6 {[%emt 0:00:00]} 12. Qd2 {[%emt 0:00:00]} g5 {[%emt 0:00:00]} 13. f4 {[%emt 0:00:00]} gxf4 {[%emt 0:00:00]} 14. exf4 {[%emt 0:00:00]} Ng6 {[%emt 0:00:00]} 15. Kh1 {[%emt 0:00:00]} Qb6 {[%emt 0:00:00]} 16. Na4 {[%emt 0:00:00]} Qc7 {[%emt 0:00:00]} 17. c5 {[%emt 0:00:00]} Nd5 {[%emt 0:00:00]} 18. cxd6 {[%emt 0:00:00]} Qxd6 {[%emt 0:00:00]} 19. fxe5 {[%emt 0:00:00]} Nxe5 {[%emt 0:00:00]} 20. Nf4 {[%emt 0:00:00]} b5 {[%emt 0:00:00]} 21. Nxd5 {[%emt 0:00:00]} cxd5 {[%emt 0:00:00]} 22. Nc3 {[%emt 0:00:00]} Bb7 {[%emt 0:00:00]} 23. Nxb5 {[%emt 0:00:00]} Qb6 {[%emt 0:00:00]} 24. a4 {[%emt 0:00:00]} Ng4 {[%emt 0:00:00]} 25. Bxg7 {[%emt 0:00:00]} Kxg7 {[%emt 0:00:00]} 26. d4 {[%emt 0:00:00]} Rae8 {[%emt 0:00:00]} 27. Rbe1 {[%emt 0:00:00]} Re4 {[%emt 0:00:00]} 28. Qg5+ {[%emt 0:00:10]} Qg6 {[%emt 0:00:07]} 29. Qxg6+ {[%emt 0:00:03]} hxg6 {[%emt 0:00:01]} 30. Nd6 {[%emt 0:00:05]} Rxe1 {[%emt 0:00:09]} 31. Rxe1 {[%emt 0:00:01]} Bc6 {[%emt 0:00:01]} 32. Rc1 {[%emt 0:00:06]} Ba8 {[%emt 0:00:23]} 33. Rc5 {[%emt 0:00:01]} Ne3 {[%emt 0:00:04]} 34. Rxa5 {[%emt 0:00:02]} Nc2 {[%emt 0:00:06]} 35. Bxd5 {[%emt 0:00:04]} Bxd5+ {[%emt 0:00:06]} 36. Rxd5 {[%emt 0:00:01]} Rb8 {[%emt 0:00:02]} 37. Nb5 {[%emt 0:00:33]} Re8 38. Re5 {[%emt 0:00:00]} Rc8 {[%emt 0:00:02]} 39. Rc5 {[%emt 0:00:00]} Re8 {[%emt 0:00:00]} 40. Rxc2 {[%emt 0:00:00]} 1-0